[Event "Titled Tuesday Blitz January 17 Late 2023"]
[White "Melikhov, Evgeny V."]
[Black "Manukyan, Sargis A."]
[WhiteFideId "4122046"]
[BlackFideId "13303970"]
[WhiteElo "2269"]
[BlackElo "2158"]
[Result "0-1"]
[Round "02"]
[TimeControl "180+2"]
[Date "2023.01.17"]
[WhiteClock "0:00:05"]
[BlackClock "0:00:38"]

1. d4 {[%clk 0:02:57]}  d5 {[%clk 0:02:58]} 2. c4 {[%clk 0:02:57]}  e6 {[%clk 0:02:56]} 3. Nc3 {[%clk 0:02:58]}  Nf6 {[%clk 0:02:55]} 4. cxd5 {[%clk 0:02:58]}  exd5 {[%clk 0:02:56]} 5. Bg5 {[%clk 0:02:57]}  c6 {[%clk 0:02:56]} 6. Qc2 {[%clk 0:02:57]}  Nbd7 {[%clk 0:02:56]} 7. e3 {[%clk 0:02:55]}  Be7 {[%clk 0:02:56]} 8. Bd3 {[%clk 0:02:54]}  O-O {[%clk 0:02:56]} 9. Nf3 {[%clk 0:02:55]}  Re8 {[%clk 0:02:57]} 10. O-O {[%clk 0:02:55]}  Nf8 {[%clk 0:02:57]} 11. h3 {[%clk 0:02:55]}  Ne4 {[%clk 0:02:55]} 12. Bxe4 {[%clk 0:02:54]}  Bxg5 {[%clk 0:02:53]} 13. Bd3 {[%clk 0:02:52]}  Be7 {[%clk 0:02:50]} 14. Rab1 {[%clk 0:02:51]}  a5 {[%clk 0:02:49]} 15. a3 {[%clk 0:02:51]}  Bd6 {[%clk 0:02:49]} 16. b4 {[%clk 0:02:50]}  axb4 {[%clk 0:02:49]} 17. axb4 {[%clk 0:02:51]}  g6 {[%clk 0:02:45]} 18. b5 {[%clk 0:02:40]}  Ne6 {[%clk 0:02:44]} 19. Na4 {[%clk 0:01:43]}  Ng5 {[%clk 0:02:26]} 20. Nxg5 {[%clk 0:01:42]}  Qxg5 {[%clk 0:02:27]} 21. Nb6 {[%clk 0:01:42]}  Bxh3 {[%clk 0:02:17]} 22. f4 {[%clk 0:01:42]}  Qh4 {[%clk 0:01:54]} 23. Nxa8 {[%clk 0:01:37]}  Rxe3 {[%clk 0:01:42]} 24. Rb3 {[%clk 0:00:30]}  Bxf4 {[%clk 0:01:36]} 25. Rxf4 {[%clk 0:00:27]}  Qxf4 {[%clk 0:01:28]} 26. Bf1 {[%clk 0:00:21]}  Bf5 {[%clk 0:01:21]} 27. Qb2 {[%clk 0:00:17]}  Rxb3 {[%clk 0:01:10]} 28. Qxb3 {[%clk 0:00:16]}  Qxd4+ {[%clk 0:01:11]} 29. Kh1 {[%clk 0:00:15]}  Qa1 {[%clk 0:01:10]} 30. Kg1 {[%clk 0:00:11]}  Qxa8 {[%clk 0:00:47]} 31. b6 {[%clk 0:00:11]}  Qa5 {[%clk 0:00:45]} 32. Qb2 {[%clk 0:00:10]}  Qc5+ {[%clk 0:00:45]} 33. Kh2 {[%clk 0:00:10]}  d4 {[%clk 0:00:43]} 34. Be2 {[%clk 0:00:08]}  h5 {[%clk 0:00:43]} 35. Bf3 {[%clk 0:00:08]}  d3 {[%clk 0:00:41]} 36. Qd2 {[%clk 0:00:07]}  Qxb6 {[%clk 0:00:41]} 37. Qg5 {[%clk 0:00:07]}  Qc7+ {[%clk 0:00:41]} 38. Kg1 {[%clk 0:00:06]}  c5 {[%clk 0:00:41]} 39. Qf6 {[%clk 0:00:05]}  c4 {[%clk 0:00:40]} 40. Bd5 {[%clk 0:00:05]}  d2 {[%clk 0:00:38]} 0-1


[Site "https://www.chess.com"]

[Event "Titled Tuesday Blitz January 17 Late 2023"]
[White "Injac, Teodora"]
[Black "Degtiarev, Evgeny"]
[WhiteFideId "932400"]
[BlackFideId "4149610"]
[WhiteElo "2391"]
[BlackElo "2385"]
[Result "1-0"]
[Round "02"]
[TimeControl "180+2"]
[Date "2023.01.17"]
[WhiteClock "0:00:12"]
[BlackClock "0:00:03"]

1. d4 {[%clk 0:03:00]}  d5 {[%clk 0:02:59]} 2. c4 {[%clk 0:03:01]}  c6 {[%clk 0:02:59]} 3. Nf3 {[%clk 0:02:58]}  Nf6 {[%clk 0:02:59]} 4. Nbd2 {[%clk 0:02:56]}  a6 {[%clk 0:02:59]} 5. e3 {[%clk 0:02:54]}  b5 {[%clk 0:02:59]} 6. b3 {[%clk 0:02:52]}  Bg4 {[%clk 0:02:58]} 7. h3 {[%clk 0:02:45]}  Bh5 {[%clk 0:02:54]} 8. g4 {[%clk 0:02:45]}  Bg6 {[%clk 0:02:54]} 9. Ne5 {[%clk 0:02:45]}  e6 {[%clk 0:02:37]} 10. Bg2 {[%clk 0:02:40]}  Bd6 {[%clk 0:02:28]} 11. Nxg6 {[%clk 0:02:39]}  hxg6 {[%clk 0:02:28]} 12. a4 {[%clk 0:02:34]}  Nbd7 {[%clk 0:02:18]} 13. g5 {[%clk 0:02:20]}  Ng8 {[%clk 0:01:59]} 14. Qg4 {[%clk 0:02:13]}  Ne7 {[%clk 0:01:52]} 15. h4 {[%clk 0:02:12]}  Nf5 {[%clk 0:01:48]} 16. h5 {[%clk 0:02:09]}  Bb4 {[%clk 0:01:31]} 17. hxg6 {[%clk 0:01:56]}  Rxh1+ {[%clk 0:01:30]} 18. Bxh1 {[%clk 0:01:57]}  fxg6 {[%clk 0:01:31]} 19. Ke2 {[%clk 0:01:49]}  Kf7 {[%clk 0:00:53]} 20. Bb2 {[%clk 0:01:38]}  bxc4 {[%clk 0:00:48]} 21. bxc4 {[%clk 0:01:38]}  Rb8 {[%clk 0:00:37]} 22. Ra2 {[%clk 0:00:59]}  Qa5 {[%clk 0:00:29]} 23. Nb3 {[%clk 0:00:50]}  Qc7 {[%clk 0:00:29]} 24. e4 {[%clk 0:00:37]}  dxe4 {[%clk 0:00:20]} 25. Qxe4 {[%clk 0:00:33]}  Bd6 {[%clk 0:00:15]} 26. Nd2 {[%clk 0:00:30]}  Bf4 {[%clk 0:00:15]} 27. Nf3 {[%clk 0:00:28]}  Rb4 {[%clk 0:00:13]} 28. Qd3 {[%clk 0:00:21]}  a5 {[%clk 0:00:08]} 29. Ne1 {[%clk 0:00:18]}  Bxg5 {[%clk 0:00:07]} 30. Nc2 {[%clk 0:00:18]}  Rb8 {[%clk 0:00:06]} 31. d5 {[%clk 0:00:14]}  cxd5 {[%clk 0:00:05]} 32. cxd5 {[%clk 0:00:14]}  Re8 {[%clk 0:00:03]} 33. Kf1 {[%clk 0:00:14]}  e5 {[%clk 0:00:03]} 34. d6 {[%clk 0:00:12]}  Qc5 {[%clk 0:00:03]} 35. Bd5+ {[%clk 0:00:12]}  Kf8 {[%clk 0:00:03]} 36. Ba3 {[%clk 0:00:12]} 1-0


[Site "https://www.chess.com"]

[Event "Titled Tuesday Blitz January 17 Late 2023"]
[White "Balague Camps, Marc"]
[Black "Domingo Nunez, Ruben"]
[WhiteFideId "2297914"]
[BlackFideId "22245570"]
[WhiteElo "2190"]
[BlackElo "2416"]
[Result "0-1"]
[Round "02"]
[TimeControl "180+2"]
[Date "2023.01.17"]
[WhiteClock "0:00:44"]
[BlackClock "0:00:08"]

1. d4 {[%clk 0:03:00]}  g6 {[%clk 0:02:58]} 2. c4 {[%clk 0:03:00]}  Bg7 {[%clk 0:02:58]} 3. Nc3 {[%clk 0:03:00]}  d6 {[%clk 0:02:59]} 4. Nf3 {[%clk 0:03:00]}  Nd7 {[%clk 0:03:00]} 5. e4 {[%clk 0:03:00]}  e5 {[%clk 0:03:00]} 6. Be3 {[%clk 0:03:00]}  Ngf6 {[%clk 0:03:01]} 7. h3 {[%clk 0:02:57]}  O-O {[%clk 0:02:59]} 8. Be2 {[%clk 0:02:56]}  exd4 {[%clk 0:02:58]} 9. Nxd4 {[%clk 0:02:55]}  Re8 {[%clk 0:02:59]} 10. Qc2 {[%clk 0:02:54]}  Nc5 {[%clk 0:02:59]} 11. Bf3 {[%clk 0:02:51]}  Nfxe4 {[%clk 0:02:48]} 12. Nxe4 {[%clk 0:02:45]}  Nxe4 {[%clk 0:02:47]} 13. Bxe4 {[%clk 0:02:46]}  Qe7 {[%clk 0:02:48]} 14. O-O {[%clk 0:02:36]}  Qxe4 {[%clk 0:02:47]} 15. Qxe4 {[%clk 0:02:35]}  Rxe4 {[%clk 0:02:47]} 16. Nb5 {[%clk 0:02:36]}  Re7 {[%clk 0:02:19]} 17. Nxa7 {[%clk 0:02:35]}  Bf5 {[%clk 0:02:11]} 18. Nb5 {[%clk 0:02:13]}  Bxb2 {[%clk 0:02:08]} 19. Rad1 {[%clk 0:02:12]}  Bf6 {[%clk 0:01:57]} 20. c5 {[%clk 0:02:12]}  dxc5 {[%clk 0:01:46]} 21. Bxc5 {[%clk 0:02:12]}  Re5 {[%clk 0:01:46]} 22. Nxc7 {[%clk 0:02:12]}  Rxa2 {[%clk 0:01:46]} 23. Bd4 {[%clk 0:02:02]}  Rc2 {[%clk 0:01:14]} 24. Bxe5 {[%clk 0:02:01]}  Bxe5 {[%clk 0:01:15]} 25. Rd8+ {[%clk 0:02:00]}  Kg7 {[%clk 0:01:13]} 26. Ne8+ {[%clk 0:01:58]}  Kh6 {[%clk 0:01:13]} 27. Nd6 {[%clk 0:01:57]}  Be6 {[%clk 0:01:12]} 28. Nxb7 {[%clk 0:01:48]}  Rb2 {[%clk 0:01:12]} 29. Nc5 {[%clk 0:01:47]}  Bf5 {[%clk 0:01:08]} 30. Nd3 {[%clk 0:01:42]}  Bf6 {[%clk 0:00:55]} 31. Nxb2 {[%clk 0:01:39]}  Bxd8 {[%clk 0:00:55]} 32. Nc4 {[%clk 0:01:40]}  Bf6 {[%clk 0:00:56]} 33. Ne3 {[%clk 0:01:40]}  Be6 {[%clk 0:00:55]} 34. Rd1 {[%clk 0:01:38]}  Kg7 {[%clk 0:00:55]} 35. Nd5 {[%clk 0:01:33]}  Be5 {[%clk 0:00:55]} 36. Ne3 {[%clk 0:01:29]}  Bf6 {[%clk 0:00:55]} 37. Ng4 {[%clk 0:01:29]}  Bg5 {[%clk 0:00:55]} 38. Kh2 {[%clk 0:01:27]}  Bf4+ {[%clk 0:00:54]} 39. g3 {[%clk 0:01:27]}  Bg5 {[%clk 0:00:54]} 40. f4 {[%clk 0:01:26]}  Be7 {[%clk 0:00:54]} 41. Re1 {[%clk 0:01:22]}  Bb4 {[%clk 0:00:53]} 42. Re4 {[%clk 0:01:19]}  Bf8 {[%clk 0:00:51]} 43. Ne3 {[%clk 0:01:19]}  Bc5 {[%clk 0:00:51]} 44. f5 {[%clk 0:01:18]}  gxf5 {[%clk 0:00:39]} 45. Re5 {[%clk 0:01:18]}  Bf8 {[%clk 0:00:26]} 46. Ra5 {[%clk 0:01:15]}  Kf6 {[%clk 0:00:25]} 47. Nd5+ {[%clk 0:01:14]}  Kg7 {[%clk 0:00:25]} 48. Nf4 {[%clk 0:01:13]}  Bd7 {[%clk 0:00:23]} 49. h4 {[%clk 0:01:13]}  Bb4 {[%clk 0:00:20]} 50. Ra7 {[%clk 0:01:12]}  Bc8 {[%clk 0:00:20]} 51. h5 {[%clk 0:01:09]}  h6 {[%clk 0:00:19]} 52. Ra8 {[%clk 0:01:08]}  Bd7 {[%clk 0:00:19]} 53. Rd8 {[%clk 0:01:08]}  Bc6 {[%clk 0:00:19]} 54. Rc8 {[%clk 0:01:06]}  Bf3 {[%clk 0:00:19]} 55. Rc4 {[%clk 0:01:05]}  Bd6 {[%clk 0:00:18]} 56. Kh3 {[%clk 0:01:05]}  Bg4+ {[%clk 0:00:18]} 57. Kg2 {[%clk 0:01:04]}  Kf6 {[%clk 0:00:16]} 58. Rc6 {[%clk 0:01:04]}  Ke7 {[%clk 0:00:15]} 59. Nd5+ {[%clk 0:01:03]}  Kd7 {[%clk 0:00:15]} 60. Ra6 {[%clk 0:01:02]}  Be2 {[%clk 0:00:14]} 61. Nf6+ {[%clk 0:01:02]}  Ke7 {[%clk 0:00:12]} 62. Ng8+ {[%clk 0:01:02]}  Kd7 {[%clk 0:00:12]} 63. Nxh6 {[%clk 0:01:02]}  Bxa6 {[%clk 0:00:12]} 64. Nxf5 {[%clk 0:01:03]}  Be5 {[%clk 0:00:12]} 65. Kf3 {[%clk 0:00:59]}  Ke6 {[%clk 0:00:12]} 66. g4 {[%clk 0:00:59]}  Kf6 {[%clk 0:00:12]} 67. h6 {[%clk 0:00:55]}  Bb7+ {[%clk 0:00:12]} 68. Ke3 {[%clk 0:00:55]}  Kg5 {[%clk 0:00:13]} 69. h7 {[%clk 0:00:53]}  Kg6 {[%clk 0:00:08]} 70. Ne7+ {[%clk 0:00:48]}  Kxh7 {[%clk 0:00:08]} 71. Kd3 {[%clk 0:00:48]}  Kg7 {[%clk 0:00:08]} 72. Ke3 {[%clk 0:00:47]}  Kf6 {[%clk 0:00:08]} 73. Nf5 {[%clk 0:00:45]}  Bc8 {[%clk 0:00:08]} 74. Nh6 {[%clk 0:00:41]}  Kg6 {[%clk 0:00:08]} 75. g5 {[%clk 0:00:41]}  Bg7 {[%clk 0:00:07]} 76. Ng8 {[%clk 0:00:38]}  Kxg5 {[%clk 0:00:05]} 77. Ne7 {[%clk 0:00:39]}  Be6 {[%clk 0:00:05]} 78. Ke4 {[%clk 0:00:39]}  Kf6 {[%clk 0:00:03]} 79. Nc6 {[%clk 0:00:39]}  Bf8 {[%clk 0:00:03]} 80. Ne5 {[%clk 0:00:39]}  Bd6 {[%clk 0:00:03]} 81. Nd3 {[%clk 0:00:40]}  Bf5+ {[%clk 0:00:03]} 82. Ke3 {[%clk 0:00:40]}  Bxd3 {[%clk 0:00:03]} 83. Kxd3 {[%clk 0:00:41]}  Ke5 {[%clk 0:00:04]} 84. Ke3 {[%clk 0:00:42]}  f5 {[%clk 0:00:05]} 85. Kf3 {[%clk 0:00:43]}  Bc5 {[%clk 0:00:05]} 86. Ke2 {[%clk 0:00:43]}  Ke4 {[%clk 0:00:06]} 87. Kf1 {[%clk 0:00:43]}  f4 {[%clk 0:00:07]} 88. Ke2 {[%clk 0:00:44]}  f3+ {[%clk 0:00:07]} 89. Kf1 {[%clk 0:00:45]}  Ke3 {[%clk 0:00:08]} 90. Kg1 {[%clk 0:00:44]}  Ke2+ {[%clk 0:00:08]} 91. Kh2 {[%clk 0:00:44]}  f2 {[%clk 0:00:08]} 0-1


[Site "https://www.chess.com"]

[Event "Titled Tuesday Blitz January 17 Late 2023"]
[White "Ozer, Omer Faruk"]
[Black "Fajdetic, Hrvoje"]
[WhiteFideId "6354564"]
[BlackFideId "14501945"]
[WhiteElo "2360"]
[BlackElo "2151"]
[Result "1-0"]
[Round "02"]
[TimeControl "180+2"]
[Date "2023.01.17"]
[WhiteClock "0:01:44"]
[BlackClock "0:00:18"]

1. e4 {[%clk 0:03:00]}  e6 {[%clk 0:02:57]} 2. d3 {[%clk 0:02:59]}  c5 {[%clk 0:02:56]} 3. Nd2 {[%clk 0:03:00]}  Nc6 {[%clk 0:02:55]} 4. g3 {[%clk 0:03:00]}  g6 {[%clk 0:02:55]} 5. Bg2 {[%clk 0:03:00]}  Bg7 {[%clk 0:02:55]} 6. Ngf3 {[%clk 0:02:59]}  e5 {[%clk 0:02:55]} 7. O-O {[%clk 0:02:59]}  d6 {[%clk 0:02:56]} 8. a3 {[%clk 0:02:59]}  Nge7 {[%clk 0:02:55]} 9. b4 {[%clk 0:03:00]}  b6 {[%clk 0:02:50]} 10. c3 {[%clk 0:02:49]}  O-O {[%clk 0:02:49]} 11. Bb2 {[%clk 0:02:49]}  h6 {[%clk 0:02:48]} 12. d4 {[%clk 0:02:48]}  exd4 {[%clk 0:02:44]} 13. cxd4 {[%clk 0:02:49]}  Kh7 {[%clk 0:02:35]} 14. Rb1 {[%clk 0:02:41]}  f5 {[%clk 0:02:28]} 15. d5 {[%clk 0:02:35]}  Bxb2 {[%clk 0:02:02]} 16. Rxb2 {[%clk 0:02:30]}  Nb8 {[%clk 0:01:39]} 17. bxc5 {[%clk 0:02:22]}  bxc5 {[%clk 0:01:40]} 18. e5 {[%clk 0:02:22]}  Na6 {[%clk 0:01:06]} 19. Nc4 {[%clk 0:02:18]}  dxe5 {[%clk 0:00:57]} 20. Nfxe5 {[%clk 0:02:19]}  Rb8 {[%clk 0:00:50]} 21. Rxb8 {[%clk 0:02:17]}  Nxb8 {[%clk 0:00:51]} 22. d6 {[%clk 0:02:17]}  Ng8 {[%clk 0:00:44]} 23. Qb3 {[%clk 0:02:11]}  Be6 {[%clk 0:00:40]} 24. Qb7+ {[%clk 0:02:10]}  Nd7 {[%clk 0:00:32]} 25. Re1 {[%clk 0:02:10]}  Bxc4 {[%clk 0:00:24]} 26. Nxc4 {[%clk 0:02:05]}  Nf6 {[%clk 0:00:23]} 27. Re7+ {[%clk 0:02:04]}  Kg8 {[%clk 0:00:21]} 28. Bc6 {[%clk 0:01:58]}  Rf7 {[%clk 0:00:20]} 29. Bxd7 {[%clk 0:01:45]}  Nxd7 {[%clk 0:00:18]} 30. Qd5 {[%clk 0:01:44]} 1-0


[Site "https://www.chess.com"]

[Event "Titled Tuesday Blitz January 17 Late 2023"]
[White "Harish, Neeraj"]
[Black "Djokic, Mihailo"]
[WhiteFideId "30958130"]
[BlackFideId "976440"]
[WhiteElo "2232"]
[BlackElo "2192"]
[Result "1-0"]
[Round "02"]
[TimeControl "180+2"]
[Date "2023.01.17"]
[WhiteClock "0:00:59"]
[BlackClock "0:00:07"]

1. e4 {[%clk 0:03:00]}  c5 {[%clk 0:02:59]} 2. Nf3 {[%clk 0:02:59]}  d6 {[%clk 0:03:00]} 3. d4 {[%clk 0:02:59]}  cxd4 {[%clk 0:03:00]} 4. Nxd4 {[%clk 0:03:00]}  Nf6 {[%clk 0:02:59]} 5. Nc3 {[%clk 0:03:00]}  g6 {[%clk 0:03:00]} 6. Be3 {[%clk 0:02:58]}  Bg7 {[%clk 0:03:00]} 7. f3 {[%clk 0:02:58]}  O-O {[%clk 0:03:01]} 8. Bc4 {[%clk 0:02:58]}  Nc6 {[%clk 0:03:02]} 9. Qd2 {[%clk 0:02:57]}  Bd7 {[%clk 0:03:02]} 10. O-O-O {[%clk 0:02:58]}  Rc8 {[%clk 0:03:03]} 11. Bb3 {[%clk 0:02:58]}  Ne5 {[%clk 0:03:02]} 12. Kb1 {[%clk 0:02:58]}  Nc4 {[%clk 0:03:02]} 13. Bxc4 {[%clk 0:02:58]}  Rxc4 {[%clk 0:03:02]} 14. g4 {[%clk 0:02:58]}  Qc7 {[%clk 0:03:03]} 15. h4 {[%clk 0:02:49]}  b5 {[%clk 0:03:02]} 16. h5 {[%clk 0:02:38]}  b4 {[%clk 0:03:01]} 17. Nce2 {[%clk 0:02:39]}  Rc8 {[%clk 0:03:00]} 18. hxg6 {[%clk 0:02:32]}  fxg6 {[%clk 0:02:59]} 19. Bh6 {[%clk 0:02:25]}  e5 {[%clk 0:02:41]} 20. Bxg7 {[%clk 0:02:25]}  Kxg7 {[%clk 0:02:41]} 21. Qh6+ {[%clk 0:02:12]}  Kg8 {[%clk 0:01:43]} 22. Nf5 {[%clk 0:02:08]}  Bxf5 {[%clk 0:01:39]} 23. gxf5 {[%clk 0:02:06]}  Rxc2 {[%clk 0:01:22]} 24. fxg6 {[%clk 0:02:01]}  Rxe2 {[%clk 0:00:47]} 25. gxh7+ {[%clk 0:01:58]}  Kf7 {[%clk 0:00:48]} 26. Rc1 {[%clk 0:01:40]}  Rc2 {[%clk 0:00:40]} 27. h8=Q {[%clk 0:01:32]}  Rxc1+ {[%clk 0:00:36]} 28. Rxc1 {[%clk 0:01:31]}  Qxc1+ {[%clk 0:00:36]} 29. Qxc1 {[%clk 0:01:31]}  Rxh8 {[%clk 0:00:37]} 30. Qc7+ {[%clk 0:01:28]}  Ke6 {[%clk 0:00:35]} 31. Qc4+ {[%clk 0:01:28]}  Ke7 {[%clk 0:00:31]} 32. Qxb4 {[%clk 0:01:28]}  Nd7 {[%clk 0:00:26]} 33. Qb7 {[%clk 0:01:19]}  Rh1+ {[%clk 0:00:24]} 34. Kc2 {[%clk 0:01:19]}  Rh3 {[%clk 0:00:20]} 35. Qxa7 {[%clk 0:01:16]}  Rxf3 {[%clk 0:00:19]} 36. a4 {[%clk 0:01:16]}  Rf4 {[%clk 0:00:20]} 37. Qb7 {[%clk 0:01:09]}  Ke6 {[%clk 0:00:17]} 38. a5 {[%clk 0:01:06]}  Nc5 {[%clk 0:00:17]} 39. Qc8+ {[%clk 0:01:06]}  Ke7 {[%clk 0:00:16]} 40. a6 {[%clk 0:01:05]}  Rf2+ {[%clk 0:00:15]} 41. Kb1 {[%clk 0:01:04]}  Nb3 {[%clk 0:00:08]} 42. Qb7+ {[%clk 0:00:59]}  Ke6 {[%clk 0:00:07]} 43. Qxb3+ {[%clk 0:01:00]}  d5 {[%clk 0:00:07]} 44. Qxd5+ {[%clk 0:00:59]} 1-0


[Site "https://www.chess.com"]

[Event "Titled Tuesday Blitz January 17 Late 2023"]
[White "Rostomyan, Mikayel"]
[Black "Desideri, Ricardo Maruchi"]
[WhiteFideId "13313754"]
[BlackFideId "2110440"]
[WhiteElo "2222"]
[BlackElo "1959"]
[Result "1-0"]
[Round "02"]
[TimeControl "180+2"]
[Date "2023.01.17"]
[WhiteClock "0:01:44"]
[BlackClock "0:00:48"]

1. d4 {[%clk 0:02:56]}  Nf6 {[%clk 0:02:58]} 2. Nf3 {[%clk 0:02:55]}  g6 {[%clk 0:02:55]} 3. b3 {[%clk 0:02:53]}  Bg7 {[%clk 0:02:55]} 4. Bb2 {[%clk 0:02:52]}  O-O {[%clk 0:02:53]} 5. e3 {[%clk 0:02:51]}  c5 {[%clk 0:02:53]} 6. Be2 {[%clk 0:02:52]}  d5 {[%clk 0:02:51]} 7. O-O {[%clk 0:02:50]}  Nc6 {[%clk 0:02:50]} 8. dxc5 {[%clk 0:02:50]}  Qc7 {[%clk 0:02:48]} 9. a3 {[%clk 0:02:50]}  e5 {[%clk 0:02:48]} 10. b4 {[%clk 0:02:50]}  e4 {[%clk 0:02:42]} 11. Nd4 {[%clk 0:02:49]}  Ne5 {[%clk 0:02:36]} 12. Nb5 {[%clk 0:02:42]}  Qb8 {[%clk 0:02:36]} 13. Nd6 {[%clk 0:02:40]}  Nfd7 {[%clk 0:02:16]} 14. Bd4 {[%clk 0:02:37]}  b6 {[%clk 0:02:09]} 15. Nxc8 {[%clk 0:02:29]}  Qxc8 {[%clk 0:02:04]} 16. cxb6 {[%clk 0:02:27]}  axb6 {[%clk 0:02:03]} 17. Nd2 {[%clk 0:02:28]}  Qc6 {[%clk 0:01:53]} 18. Qb1 {[%clk 0:02:14]}  b5 {[%clk 0:01:52]} 19. a4 {[%clk 0:02:09]}  bxa4 {[%clk 0:01:48]} 20. b5 {[%clk 0:02:09]}  Qb7 {[%clk 0:01:46]} 21. c4 {[%clk 0:02:08]}  dxc4 {[%clk 0:01:37]} 22. Nxe4 {[%clk 0:02:05]}  Nd3 {[%clk 0:01:24]} 23. Bxg7 {[%clk 0:01:59]}  Kxg7 {[%clk 0:01:23]} 24. Bxd3 {[%clk 0:01:59]}  cxd3 {[%clk 0:01:19]} 25. Qxd3 {[%clk 0:02:00]}  Ne5 {[%clk 0:01:11]} 26. Qd4 {[%clk 0:01:49]}  Rfe8 {[%clk 0:01:11]} 27. Nd6 {[%clk 0:01:45]}  Qe7 {[%clk 0:00:49]} 28. Nxe8+ {[%clk 0:01:43]}  Rxe8 {[%clk 0:00:48]} 29. f4 {[%clk 0:01:44]} 1-0


[Site "https://www.chess.com"]

[Event "Titled Tuesday Blitz January 17 Late 2023"]
[White "Dimitrov, Atanas"]
[Black "Ozates, Tuna"]
[WhiteFideId "2901315"]
[BlackFideId "6354521"]
[WhiteElo "2269"]
[BlackElo "2251"]
[Result "1-0"]
[Round "02"]
[TimeControl "180+2"]
[Date "2023.01.17"]
[WhiteClock "0:00:04"]
[BlackClock "0:00:02"]

1. Nf3 {[%clk 0:03:00]}  c5 {[%clk 0:02:57]} 2. c4 {[%clk 0:03:00]}  Nc6 {[%clk 0:02:56]} 3. Nc3 {[%clk 0:03:01]}  Nd4 {[%clk 0:02:52]} 4. e3 {[%clk 0:02:58]}  Nxf3+ {[%clk 0:02:53]} 5. Qxf3 {[%clk 0:02:59]}  g6 {[%clk 0:02:53]} 6. d4 {[%clk 0:02:57]}  Bg7 {[%clk 0:02:54]} 7. d5 {[%clk 0:02:54]}  Nh6 {[%clk 0:02:53]} 8. Bd3 {[%clk 0:02:53]}  d6 {[%clk 0:02:52]} 9. h3 {[%clk 0:02:53]}  O-O {[%clk 0:02:52]} 10. e4 {[%clk 0:02:51]}  f6 {[%clk 0:02:48]} 11. Qe2 {[%clk 0:02:48]}  Nf7 {[%clk 0:02:47]} 12. f4 {[%clk 0:02:48]}  a6 {[%clk 0:02:42]} 13. Bd2 {[%clk 0:02:46]}  e6 {[%clk 0:02:38]} 14. O-O {[%clk 0:02:42]}  Re8 {[%clk 0:02:32]} 15. Qf3 {[%clk 0:02:32]}  Rb8 {[%clk 0:02:21]} 16. a4 {[%clk 0:02:29]}  Qb6 {[%clk 0:02:07]} 17. b3 {[%clk 0:02:09]}  exd5 {[%clk 0:01:08]} 18. Nxd5 {[%clk 0:02:03]}  Qd8 {[%clk 0:01:05]} 19. Bc3 {[%clk 0:01:57]}  Be6 {[%clk 0:01:04]} 20. Rfe1 {[%clk 0:01:50]}  Bxd5 {[%clk 0:01:01]} 21. exd5 {[%clk 0:01:47]}  f5 {[%clk 0:00:59]} 22. Bxg7 {[%clk 0:01:43]}  Kxg7 {[%clk 0:00:59]} 23. g4 {[%clk 0:01:43]}  fxg4 {[%clk 0:00:57]} 24. hxg4 {[%clk 0:01:43]}  Qf6 {[%clk 0:00:56]} 25. Kg2 {[%clk 0:01:41]}  Qc3 {[%clk 0:00:54]} 26. Rxe8 {[%clk 0:00:59]}  Rxe8 {[%clk 0:00:55]} 27. Ra2 {[%clk 0:00:51]}  Qxb3 {[%clk 0:00:49]} 28. Rf2 {[%clk 0:00:50]}  Re1 {[%clk 0:00:44]} 29. g5 {[%clk 0:00:27]}  Qxa4 {[%clk 0:00:31]} 30. Rb2 {[%clk 0:00:19]}  Qd1 {[%clk 0:00:21]} 31. Qxd1 {[%clk 0:00:14]}  Rxd1 {[%clk 0:00:21]} 32. Be2 {[%clk 0:00:14]}  Rd4 {[%clk 0:00:18]} 33. Kf3 {[%clk 0:00:12]}  Nd8 {[%clk 0:00:17]} 34. Ke3 {[%clk 0:00:11]}  Kf7 {[%clk 0:00:15]} 35. Bd3 {[%clk 0:00:11]}  Ke7 {[%clk 0:00:15]} 36. Rh2 {[%clk 0:00:11]}  Kf8 {[%clk 0:00:01]} 37. Rxh7 {[%clk 0:00:12]}  Nf7 {[%clk 0:00:02]} 38. Bxg6 {[%clk 0:00:11]}  Nd8 {[%clk 0:00:02]} 39. Rd7 {[%clk 0:00:11]}  Nc6 {[%clk 0:00:01]} 40. dxc6 {[%clk 0:00:10]}  bxc6 {[%clk 0:00:02]} 41. Bd3 {[%clk 0:00:10]}  a5 {[%clk 0:00:02]} 42. Rc7 {[%clk 0:00:08]}  d5 {[%clk 0:00:01]} 43. cxd5 {[%clk 0:00:07]}  Rxd5 {[%clk 0:00:02]} 44. Rxc6 {[%clk 0:00:07]}  a4 {[%clk 0:00:03]} 45. Ra6 {[%clk 0:00:06]}  Rd8 {[%clk 0:00:01]} 46. Rxa4 {[%clk 0:00:06]}  Kg7 {[%clk 0:00:02]} 47. Re4 {[%clk 0:00:07]}  Kh8 {[%clk 0:00:02]} 48. Bc4 {[%clk 0:00:07]}  Rb8 {[%clk 0:00:01]} 49. f5 {[%clk 0:00:08]}  Rd8 {[%clk 0:00:01]} 50. Kf4 {[%clk 0:00:08]}  Kg7 {[%clk 0:00:02]} 51. f6+ {[%clk 0:00:08]}  Kg6 {[%clk 0:00:03]} 52. Kg4 {[%clk 0:00:06]}  Rd2 {[%clk 0:00:03]} 53. Bf1 {[%clk 0:00:04]}  Rd1 {[%clk 0:00:03]} 54. Rf4 {[%clk 0:00:04]}  Rd7 {[%clk 0:00:02]} 55. Bg2 {[%clk 0:00:04]}  Rf7 {[%clk 0:00:02]} 56. Be4# {[%clk 0:00:04]} 1-0


[Site "https://www.chess.com"]